fUSD/lending_fUSD_20240114
["ID","MTS","AMOUNT","RATE_DAILY","PERIOD"]
[311621338,1705265541283,-500.0,0.00030136,2]
[311621339,1705265541293,-255.55889879,0.00030684,2]
[311621340,1705265541303,-500.0,0.00030684,2]
[311621341,1705265541313,-500.0,0.00030684,2]
[311621342,1705265541322,-500.0,0.00030684,2]
[311621343,1705265541332,-500.0,0.00030684,2]
[311621344,1705265541342,-500.0,0.00030958,2]
[311621345,1705265541351,-500.0,0.00030958,2]
[311621346,1705265541361,-500.0,0.00030958,2]
[311621347,1705265541371,-500.0,0.00030958,2]
[311621348,1705265541381,-368.11833588,0.00030958,2]
[311621349,1705265541391,-500.0,0.00030958,2]
[311621350,1705265541402,-1505.43,0.00031232,2]
[311621351,1705265541414,-500.0,0.00031232,2]
[311621352,1705265541424,-500.0,0.00031232,2]
[311621353,1705265541434,-485.37015323,0.00031232,2]
[311621354,1705265541444,-500.0,0.00031232,2]
[311621355,1705265541454,-500.0,0.00031232,2]
[311621356,1705265541465,-1287.53,0.00031506,2]
[311621357,1705265541475,-1505.43,0.00031506,2]
[311621358,1705265541485,-500.0,0.00031506,2]
[311621359,1705265541494,-500.0,0.00031506,2]
[311621360,1705265541504,-500.0,0.00031506,2]
[311621361,1705265541514,-1287.53,0.0003178,2]
[311621362,1705265541523,-1505.43,0.0003178,2]
[311621363,1705265541533,-480.18,0.0003178,2]
[311621364,1705265541543,-500.0,0.0003178,2]
[311621365,1705265541553,-500.0,0.0003178,2]
[311621366,1705265541563,-1287.53,0.00032054,2]
[311621367,1705265541573,-1505.43,0.00032054,2]
[311621368,1705265541583,-193.79,0.00032054,2]
[311621369,1705265541593,-1287.53,0.00032328,2]
[311621370,1705265541602,-1505.43,0.00032328,2]
[311621371,1705265541614,-1287.53,0.00032602,2]
[311621372,1705265541623,-1505.43,0.00032602,2]
[311621373,1705265541633,-1287.53,0.00032876,2]
[311621374,1705265541642,-1505.43,0.00032876,2]
[311621375,1705265541652,-500.0,0.0003315,2]
[311621376,1705265541663,-1287.53,0.0003315,2]
[311621377,1705265541673,-1505.43,0.0003315,2]
[311621378,1705265541683,-1215.97135015,0.00033424,2]
[311621379,1705265541693,-1108.32,0.00033424,2]
[311621380,1705265541703,-560.24,0.00033424,2]
[311621381,1705265541712,-691.92,0.00033424,2]
[311621382,1705265541722,-500.0,0.00033424,2]
[311621383,1705265541731,-644.63,0.00033424,2]
[311621384,1705265541741,-917.54,0.00033424,2]
[311621385,1705265541754,-500.0,0.00033424,2]
[311621386,1705265541769,-4169.87,0.00033424,2]
[311621387,1705265541779,-503.48,0.00033424,2]
[311621388,1705265541790,-810.05,0.00033424,2]
[311621389,1705265541799,-799.56,0.00033424,2]
[311621390,1705265541809,-500.0,0.00033424,2]
[311621391,1705265541818,-398.98165507,0.00033424,2]
[311621392,1705265541827,-767.29,0.00033424,2]
[311621393,1705265541837,-907.45,0.00033424,2]
[311621394,1705265541848,-733.07,0.00033424,2]
[311621395,1705265541858,-500.0,0.00033424,2]
[311621396,1705265541867,-6057.77,0.00033424,2]
[311621397,1705265541876,-1447.4,0.00033424,2]
[311621398,1705265541885,-1557.23,0.00033424,2]
[311621399,1705265541895,-1520.88,0.00033424,2]
[311621400,1705265541904,-500.0,0.00033424,2]
[311621401,1705265541914,-1561.7,0.00033424,2]
[311621402,1705265541924,-2650.58,0.00033424,2]
[311621403,1705265541934,-16510.87,0.00033424,2]
[311621404,1705265541944,-500.0,0.00033424,2]
[311621405,1705265541953,-500.0,0.00033424,2]
[311621406,1705265541963,-1302.74,0.00033424,2]
[311621407,1705265541972,-587.88,0.00033424,2]
[311621408,1705265541982,-1648.36,0.00033424,2]
[311621409,1705265541992,-3126.96,0.00033424,2]
[311621410,1705265542001,-500.0,0.00033424,2]
[311621411,1705265542011,-340.08479605,0.00033424,2]
[311621412,1705265542020,-1892.55,0.00033424,2]
[311621413,1705265542029,-500.0,0.00033424,2]
[311621414,1705265542039,-3105.59,0.00033424,2]
[311621415,1705265542049,-8950.09,0.00033424,2]
[311621416,1705265542058,-1582.78,0.00033424,2]
[311621417,1705265542068,-550.21951963,0.00033424,2]
[311621418,1705265542078,-1119.58,0.00033424,2]
[311621419,1705265542087,-810.88,0.00033424,2]
[311621420,1705265542096,-925.46,0.00033424,2]
[311621421,1705265542105,-1362.22,0.00033424,2]
[311621422,1705265542115,-1419.16,0.00033424,2]
[311621423,1705265542124,-840.38,0.00033424,2]
[311621424,1705265542133,-500.0,0.00033424,2]
[311621425,1705265542142,-1153.75,0.00033424,2]
[311621426,1705265542152,-707.1,0.00033424,2]
[311621427,1705265542161,-965.13,0.00033424,2]
[311621428,1705265542170,-500.0,0.00033424,2]
[311621429,1705265542179,-500.0,0.00033424,2]
[311621430,1705265542189,-736.07,0.00033424,2]
[311621431,1705265542198,-1354.92,0.00033424,2]
[311621432,1705265542207,-622.53,0.00033424,2]
[311621433,1705265542216,-5875.67,0.00033424,2]
[311621434,1705265542225,-836.71,0.00033424,2]
[311621435,1705265542236,-784.6,0.00033424,2]
[311621436,1705265542246,-3535.86,0.00033424,2]
[311621437,1705265542255,-1339.45,0.00033424,2]
[311621438,1705265542264,-726.02,0.00033424,2]
[311621439,1705265542273,-2000.77,0.00033424,2]
[311621440,1705265542282,-772.02,0.00033424,2]
[311621441,1705265542292,-4196.76,0.00033424,2]
[311621442,1705265542301,-874.57,0.00033424,2]
[311621443,1705265542311,-1070.23,0.00033424,2]
[311621444,1705265542320,-563.09,0.00033424,2]
[311621445,1705265542329,-500.0,0.00033424,2]
[311621446,1705265542338,-803.67,0.00033424,2]
[311621447,1705265542347,-500.0,0.00033424,2]
[311621448,1705265542356,-869.2,0.00033424,2]
[311621449,1705265542365,-500.0,0.00033424,2]
[311621450,1705265542374,-581.19,0.00033424,2]
[311621451,1705265542383,-633.03,0.00033424,2]
[311621452,1705265542392,-969.9,0.00033424,2]
[311621453,1705265542402,-2946.84,0.00033424,2]
[311621454,1705265542412,-711.01,0.00033424,2]
[311621455,1705265542421,-1464.74,0.00033424,2]
[311621456,1705265542430,-552.27,0.00033424,2]
[311621457,1705265542438,-1928.32,0.00033424,2]
[311621458,1705265542447,-1643.12,0.00033424,2]
[311621459,1705265542456,-1109.23,0.00033424,2]
[311621460,1705265542466,-1980.27,0.00033424,2]
[311621461,1705265542475,-1413.08,0.00033424,2]
[311621462,1705265542484,-503.28,0.00033424,2]
[311621463,1705265542494,-500.0,0.00033424,2]
[311621464,1705265542503,-500.0,0.00033424,2]
[311621465,1705265542512,-500.0,0.00033424,2]
[311621466,1705265542522,-532.18,0.00033424,2]
[311621467,1705265542531,-1886.92,0.00033424,2]
[311621468,1705265542540,-560.65,0.00033424,2]
[311621469,1705265542550,-710.77,0.00033424,2]
[311621470,1705265542559,-610.95,0.00033424,2]
[311621471,1705265542568,-500.0,0.00033424,2]
[311621472,1705265542578,-848.62,0.00033424,2]
[311621473,1705265542587,-4590.19,0.00033424,2]
[311621474,1705265542596,-567.58,0.00033424,2]
[311621475,1705265542605,-500.0,0.00033424,2]
[311621476,1705265542614,-1287.53,0.00033424,2]
[311621477,1705265542623,-150.0,0.00033425,2]
[311621478,1705265542632,-1736.64,0.00033425,2]
[311621479,1705265542640,-150.0,0.00033425,2]
[311621480,1705265542650,-150.0,0.00033425,2]
[311621481,1705265542662,-150.0,0.00033425,2]
[311621482,1705265542670,-150.0,0.00033425,2]
[311621483,1705265542679,-150.0,0.00033425,2]
[311621484,1705265542688,-150.0,0.00033425,2]
[311621485,1705265542697,-150.0,0.00033425,2]
[311621486,1705265542706,-150.0,0.00033425,2]
[311621487,1705265542715,-150.0,0.00033425,2]
[311621488,1705265542725,-418.07,0.00033425,2]
[311621489,1705265542734,-314.34,0.00033425,2]
[311621490,1705265542743,-150.0,0.00033425,2]
[311621491,1705265542753,-500.0,0.00033427,2]
[311621492,1705265542765,-200.0,0.00033427,2]
[311621493,1705265542774,-203.41484713,0.00033496,2]
[311621494,1705265542783,-2461.679696,0.000335,2]
[311621495,1705265542793,-1617.76,0.000335,2]
[311621496,1705265542802,-1617.76,0.000335,2]
[311621497,1705265542812,-1617.76,0.000335,2]
[311621498,1705265542821,-1617.76,0.000335,2]
[311621499,1705265542831,-1617.76,0.000335,2]
[311621500,1705265542840,-1617.76,0.000335,2]
[311621501,1705265542850,-1617.76,0.000335,2]
[311621502,1705265542859,-1617.76,0.000335,2]
[311621503,1705265542869,-1617.76,0.000335,2]
[311621504,1705265542878,-1617.76,0.000335,2]
[311621505,1705265542887,-1617.76,0.000335,2]
[311621506,1705265542900,-1617.76,0.000335,2]
[311621507,1705265542912,-1617.76,0.000335,2]
[311621508,1705265542921,-1617.76,0.000335,2]
[311621509,1705265542930,-1617.76,0.000335,2]
[311621510,1705265542940,-1617.76,0.000335,2]
[311621511,1705265542949,-1617.76,0.000335,2]
[311621512,1705265542959,-1617.76,0.000335,2]
[311621513,1705265542968,-1617.76,0.000335,2]
[311621514,1705265542978,-1617.76,0.000335,2]
[311621515,1705265542987,-176008.31,0.0003355,2]
[311621516,1705265542996,-3000.0,0.000336,2]
[311621517,1705265543006,-300.0,0.000336,7]
[311621518,1705265543016,-150.0,0.000336,7]
[311621519,1705265543025,-1500.0,0.000336,13]
[311621520,1705265543033,-275.5,0.000336,2]
[311621521,1705265543043,-150.0,0.000336,7]
[311621522,1705265543051,-333.329578,0.000336,2]
[311621523,1705265543061,-150.0,0.00033661,2]
[311621524,1705265543070,-31537.483922,0.00033664,2]
[311621525,1705265543079,-788.9267151,0.00033694,2]
[311621526,1705265543088,-15112.4234322,0.00033694,2]
[311621527,1705265543097,-14519.2662643,0.00033694,2]
[311621528,1705265543106,-13926.1090964,0.00033694,2]
[311621529,1705265543115,-13332.9519285,0.00033694,2]
[311621530,1705265543124,-12739.7947606,0.00033694,2]
[311621531,1705265543133,-12146.6375927,0.00033694,2]
[311621532,1705265543143,-1694.7896717,0.00033694,2]
[311621533,1705265543152,-1628.2697885,0.00033694,2]
[311621534,1705265543163,-1561.7499053,0.00033694,2]
[311621535,1705265543172,-1495.2300221,0.00033694,2]
[311621536,1705265543182,-1428.7101389,0.00033694,2]
[311621537,1705265543191,-1362.1902556,0.00033694,2]
[311621538,1705265543200,-2470.0355922,0.00033694,2]
[311621539,1705265543210,-2375.5050204,0.00033694,2]
[311621540,1705265543219,-2280.9744486,0.00033694,2]
[311621541,1705265543228,-2186.4438769,0.00033694,2]
[311621542,1705265543237,-2091.9133051,0.00033694,2]
[311621543,1705265543247,-1997.3827333,0.00033694,2]
[311621544,1705265543257,-19968.1334322,0.00033694,2]
[311621545,1705265543268,-19203.9342942,0.00033694,2]
[311621546,1705265543278,-18439.7351561,0.00033694,2]
[311621547,1705265543288,-17675.5360181,0.00033694,2]
[311621548,1705265543298,-16911.33688,0.00033694,2]
[311621549,1705265543307,-16147.137742,0.00033694,2]
[311621550,1705265543317,-868.7615527,0.00033694,2]
[311621551,1705265543327,-835.5132358,0.00033694,2]
[311621552,1705265543337,-802.2649188,0.00033694,2]
[311621553,1705265543347,-769.0166018,0.00033694,2]
[311621554,1705265543356,-735.7682848,0.00033694,2]
[311621555,1705265543366,-702.5199679,0.00033694,2]
[311621556,1705265543375,-292.984231,0.00033694,2]
[311621557,1705265543384,-275.9560876,0.00033694,2]
[311621558,1705265543398,-258.9279443,0.00033694,2]
[311621559,1705265543407,-241.899801,0.00033694,2]
[311621560,1705265543423,-224.8716576,0.00033694,2]
[311621561,1705265543433,-207.8435143,0.00033694,2]
[311621562,1705265543443,-20426.4354337,0.00033694,2]
[311621563,1705265543455,-19239.2579897,0.00033694,2]
[311621564,1705265543465,-18052.0805457,0.00033694,2]
[311621565,1705265543474,-16864.9031017,0.00033694,2]
[311621566,1705265543484,-15677.7256577,0.00033694,2]
[311621567,1705265543493,-14490.5482137,0.00033694,2]
[311621568,1705265543502,-2214.7215079,0.00033694,2]
[311621569,1705265543512,-2086.0026511,0.00033694,2]
[311621570,1705265543522,-1957.2837942,0.00033694,2]
[311621571,1705265543531,-1828.5649373,0.00033694,2]
[311621572,1705265543542,-1699.8460804,0.00033694,2]
[311621573,1705265543551,-1571.1272236,0.00033694,2]
[311621574,1705265543561,-654.1263992,0.00033694,2]
[311621575,1705265543571,-784.9909306,0.00033694,2]
[311621576,1705265543581,-915.855462,0.00033694,2]
[311621577,1705265543590,-1046.7199933,0.00033694,2]
[311621578,1705265543599,-1177.5845247,0.00033694,2]
[311621579,1705265543609,-1308.4490561,0.00033694,2]
[311621580,1705265543618,-150.01,0.00033697,2]
[311621581,1705265543627,-51388.67049931,0.00033697,2]
[311621582,1705265543637,-3293.74903118,0.00033697,2]
[311621583,1705265543646,-163.3,0.00033698,2]
[311621584,1705265543656,-500.0,0.00033698,2]
[311621585,1705265543668,-500.0,0.00033698,2]
[311621586,1705265543677,-500.0,0.00033698,2]
[311621587,1705265543686,-500.0,0.00033698,2]
[311621588,1705265543695,-327.58261335,0.00033698,2]
[311621589,1705265543704,-528.74,0.00033698,2]
[311621590,1705265543713,-502.48,0.00033698,2]
[311621591,1705265543723,-500.0,0.00033698,2]
[311621592,1705265543732,-500.0,0.00033698,2]
[311621593,1705265543741,-770.53,0.00033698,2]
[311621594,1705265543751,-500.0,0.00033698,2]
[311621595,1705265543762,-926.02,0.00033698,2]
[311621596,1705265543771,-1147.85,0.00033698,2]
[311621597,1705265543780,-500.0,0.00033698,2]
[311621598,1705265543790,-500.0,0.00033698,2]
[311621599,1705265543799,-541.41,0.00033698,2]
[311621600,1705265543808,-500.0,0.00033698,2]
[311621601,1705265544085,-500.0,0.00033698,2]
[311621602,1705265544094,-500.0,0.00033698,2]
[311621603,1705265544103,-709.9,0.00033698,2]
[311621604,1705265544113,-500.0,0.00033698,2]
[311621605,1705265544122,-500.0,0.00033698,2]
[311621606,1705265544131,-656.39,0.00033698,2]
[311621607,1705265544141,-500.0,0.00033698,2]
[311621608,1705265544150,-500.0,0.00033698,2]
[311621609,1705265544159,-500.0,0.00033698,2]
[311621610,1705265544171,-500.0,0.00033698,2]
[311621611,1705265544180,-585.77,0.00033698,2]
[311621612,1705265544190,-500.0,0.00033698,2]
[311621613,1705265544199,-646.67,0.00033698,2]
[311621614,1705265544208,-500.0,0.00033698,2]
[311621615,1705265544218,-500.0,0.00033698,2]
[311621616,1705265544227,-518.76,0.00033698,2]
[311621617,1705265544237,-525.14032283,0.00033698,2]
[311621618,1705265544247,-500.0,0.00033698,2]
[311621619,1705265544257,-500.0,0.00033698,2]
[311621620,1705265544266,-500.0,0.00033698,2]
[311621621,1705265544276,-673.27,0.00033698,2]
[311621622,1705265544286,-653.68,0.00033698,2]
[311621623,1705265544295,-640.51,0.00033698,2]
[311621624,1705265544304,-595.86,0.00033698,2]
[311621625,1705265544314,-565.95,0.00033698,2]
[311621626,1705265544323,-500.0,0.00033698,2]
[311621627,1705265544333,-588.78,0.00033698,2]
[311621628,1705265544343,-645.55,0.00033698,2]
[311621629,1705265544353,-683.34,0.00033698,2]
[311621630,1705265544362,-551.22,0.00033698,2]
[311621631,1705265544371,-500.0,0.00033698,2]
[311621632,1705265544381,-594.67,0.00033698,2]
[311621633,1705265544391,-500.0,0.00033698,2]
[311621634,1705265544400,-963.4,0.00033698,2]
[311621635,1705265544409,-601.15,0.00033698,2]
[311621636,1705265544422,-665.95,0.00033698,2]
[311621637,1705265544432,-631.15,0.00033698,2]
[311621638,1705265544441,-500.0,0.00033698,2]
[311621639,1705265544451,-500.0,0.00033698,2]
[311621640,1705265544461,-800.79,0.00033698,2]
[311621641,1705265544470,-562.08,0.00033698,2]
[311621642,1705265544480,-626.87,0.00033698,2]
[311621643,1705265544489,-500.0,0.00033698,2]
[311621644,1705265544499,-500.0,0.00033698,2]
[311621645,1705265544508,-727.57,0.00033698,2]
[311621646,1705265544518,-560.21,0.00033698,2]
[311621647,1705265544528,-500.0,0.00033698,2]
[311621648,1705265544537,-500.0,0.00033698,2]
[311621649,1705265544547,-522.98654927,0.00033698,2]
[311621650,1705265544556,-982.04,0.00033698,2]
[311621651,1705265544566,-500.0,0.00033698,2]
[311621652,1705265544575,-600.07,0.00033698,2]
[311621653,1705265544584,-1048.4,0.00033698,2]
[311621654,1705265544594,-500.0,0.00033698,2]
[311621655,1705265544603,-950.82,0.00033698,2]
[311621656,1705265544612,-775.5,0.00033698,2]
[311621657,1705265544622,-500.0,0.00033698,2]
[311621658,1705265544631,-806.58,0.00033698,2]
[311621659,1705265544641,-748.97,0.00033698,2]
[311621660,1705265544650,-323.00219203,0.00033698,2]
[311621661,1705265544660,-500.0,0.00033698,2]
[311621662,1705265544671,-500.0,0.00033698,2]
[311621663,1705265544680,-544.49,0.00033698,2]
[311621664,1705265544689,-500.0,0.00033698,2]
[311621665,1705265544698,-500.0,0.00033698,2]
[311621666,1705265544707,-500.0,0.00033698,2]
[311621667,1705265544716,-671.61,0.00033698,2]
[311621668,1705265544725,-500.0,0.00033698,2]
[311621669,1705265544734,-500.0,0.00033698,2]
[311621670,1705265544744,-500.0,0.00033698,2]
[311621671,1705265544753,-500.0,0.00033698,2]
[311621672,1705265544763,-500.0,0.00033698,2]
[311621673,1705265544772,-602.2,0.00033698,2]
[311621674,1705265544781,-769.86,0.00033698,2]
[311621675,1705265544791,-500.0,0.00033698,2]
[311621676,1705265544800,-500.0,0.00033698,2]
[311621677,1705265544809,-500.0,0.00033698,2]
[311621678,1705265544818,-500.0,0.00033698,2]
[311621679,1705265544832,-500.0,0.00033698,2]
[311621680,1705265544842,-500.0,0.00033698,2]
[311621681,1705265544851,-692.82,0.00033698,2]
[311621682,1705265544861,-507.31,0.00033698,2]
[311621683,1705265544870,-500.0,0.00033698,2]
[311621684,1705265544879,-500.0,0.00033698,2]
[311621685,1705265544889,-729.84,0.00033698,2]
[311621686,1705265544898,-536.68,0.00033698,2]
[311621687,1705265544908,-583.46,0.00033698,2]
[311621688,1705265544920,-500.0,0.00033698,2]
[311621689,1705265544930,-500.0,0.00033698,2]
[311621690,1705265544940,-456.38643329,0.00033698,2]
[311621691,1705265544950,-462.07202544,0.00033698,2]
[311621692,1705265544960,-500.0,0.00033698,2]
[311621693,1705265544969,-500.0,0.00033698,2]
[311621694,1705265544978,-1000.1,0.00033698,2]
[311621695,1705265544988,-500.0,0.00033698,2]
[311621696,1705265544997,-702.71,0.00033698,2]
[311621697,1705265545007,-500.0,0.00033698,2]
[311621698,1705265545016,-553.06,0.00033698,2]
[311621699,1705265545026,-793.74,0.00033698,2]
[311621700,1705265545036,-923.77,0.00033698,2]
[311621701,1705265545046,-500.0,0.00033698,2]
[311621702,1705265545055,-500.0,0.00033698,2]
[311621703,1705265545065,-629.36,0.00033698,2]
[311621704,1705265545074,-500.0,0.00033698,2]
[311621705,1705265545084,-867.3,0.00033698,2]
[311621706,1705265545095,-500.0,0.00033698,2]
[311621707,1705265545105,-500.0,0.00033698,2]
[311621708,1705265545115,-500.0,0.00033698,2]
[311621709,1705265545124,-581.81,0.00033698,2]
[311621710,1705265545134,-624.05,0.00033698,2]
[311621711,1705265545143,-830.39,0.00033698,2]
[311621712,1705265545153,-480.94335267,0.00033698,2]
[311621713,1705265545164,-677.4,0.00033698,2]
[311621714,1705265545174,-1100.99,0.00033698,2]
[311621715,1705265545184,-500.0,0.00033698,2]
[311621716,1705265545194,-525.17,0.00033698,2]
[311621717,1705265545204,-500.0,0.00033698,2]
[311621718,1705265545215,-586.11,0.00033698,2]
[311621719,1705265545224,-500.0,0.00033698,2]
[311621720,1705265545234,-500.0,0.00033698,2]
[311621721,1705265545245,-1229.11,0.00033698,2]
[311621722,1705265545255,-1106.76,0.00033698,2]
[311621723,1705265545265,-500.0,0.00033698,2]
[311621724,1705265545275,-500.0,0.00033698,2]
[311621725,1705265545284,-894.93,0.00033698,2]
[311621726,1705265545294,-608.9,0.00033698,2]
[311621727,1705265545304,-500.0,0.00033698,2]
[311621728,1705265545313,-946.64,0.00033698,2]
[311621729,1705265545323,-500.0,0.00033698,2]
[311621730,1705265545333,-619.49,0.00033698,2]
[311621731,1705265545342,-868.77,0.00033698,2]
[311621732,1705265545351,-500.0,0.00033698,2]
[311621733,1705265545361,-578.25,0.00033698,2]
[311621734,1705265545371,-500.0,0.00033698,2]
[311621735,1705265545380,-500.0,0.00033698,2]
[311621736,1705265545390,-500.0,0.00033698,2]
[311621737,1705265545400,-500.0,0.00033698,2]
[311621738,1705265545409,-532.95,0.00033698,2]
[311621739,1705265545419,-1204.84,0.00033698,2]
[311621740,1705265545429,-500.0,0.00033698,2]
[311621741,1705265545439,-500.0,0.00033698,2]
[311621742,1705265545448,-545.29,0.00033698,2]
[311621743,1705265545457,-500.0,0.00033698,2]
[311621744,1705265545467,-670.63,0.00033698,2]
[311621745,1705265545476,-523.04,0.00033698,2]
[311621746,1705265545486,-500.0,0.00033698,2]
[311621747,1705265545495,-500.0,0.00033698,2]
[311621748,1705265545504,-636.75,0.00033698,2]
[311621749,1705265545514,-384.70159583,0.00033698,2]
[311621750,1705265545524,-596.02,0.00033698,2]
[311621751,1705265545534,-1015.13,0.00033698,2]
[311621752,1705265545544,-500.0,0.00033698,2]
[311621753,1705265545553,-1744.35,0.00033698,2]
[311621754,1705265545563,-851.16,0.00033698,2]
[311621755,1705265545573,-536.9,0.00033698,2]
[311621756,1705265545583,-846.45,0.00033698,2]
[311621757,1705265545592,-500.0,0.00033698,2]
[311621758,1705265545602,-500.0,0.00033698,2]
[311621759,1705265545612,-607.07,0.00033698,2]
[311621760,1705265545621,-500.0,0.00033698,2]
[311621761,1705265545631,-1022.21,0.00033698,2]
[311621762,1705265545655,-797.3,0.00033698,2]
[311621763,1705265545675,-500.0,0.00033698,2]
[311621764,1705265545694,-560.52,0.00033698,2]
[311621765,1705265545714,-546.08,0.00033698,2]
[311621766,1705265545730,-1547.25,0.00033698,2]
[311621767,1705265545747,-715.62,0.00033698,2]
[311621768,1705265545767,-500.0,0.00033698,2]
[311621769,1705265545783,-900.1,0.00033698,2]
[311621770,1705265545803,-500.0,0.00033698,2]
[311621771,1705265545821,-500.0,0.00033698,2]
[311621772,1705265545840,-1245.22,0.00033698,2]
[311621773,1705265545859,-500.0,0.00033698,2]
[311621774,1705265545872,-2718.67,0.00033698,2]
[311621775,1705265545889,-679.75,0.00033698,2]
[311621776,1705265545908,-1251.06,0.00033698,2]
[311621777,1705265545923,-650.18,0.00033698,2]
[311621778,1705265545939,-500.0,0.00033698,2]
[311621779,1705265545957,-500.0,0.00033698,2]
[311621780,1705265545974,-983.25,0.00033698,2]
[311621781,1705265545992,-2249.92,0.00033698,2]
[311621782,1705265546009,-500.0,0.00033698,2]
[311621783,1705265546030,-595.82,0.00033698,2]
[311621784,1705265546046,-500.0,0.00033698,2]
[311621785,1705265546062,-308.51753603,0.00033698,2]
[311621786,1705265546077,-1879.49,0.00033698,2]
[311621787,1705265546093,-979.35,0.00033698,2]
[311621788,1705265546109,-645.75,0.00033698,2]
[311621789,1705265546128,-629.35,0.00033698,2]
[311621790,1705265546144,-689.93,0.00033698,2]
[311621791,1705265546160,-905.95,0.00033698,2]
[311621792,1705265546177,-669.74,0.00033698,2]
[311621793,1705265546193,-658.52,0.00033698,2]
[311621794,1705265546208,-500.0,0.00033698,2]
[311621795,1705265546223,-500.0,0.00033698,2]
[311621796,1705265546240,-500.0,0.00033698,2]
[311621797,1705265546255,-1000.92,0.00033698,2]
[311621798,1705265546270,-584.45,0.00033698,2]
[311621799,1705265546285,-500.0,0.00033698,2]
[311621800,1705265546302,-500.0,0.00033698,2]
[311621801,1705265546316,-500.0,0.00033698,2]
[311621802,1705265546332,-500.0,0.00033698,2]
[311621803,1705265546347,-596.4,0.00033698,2]
[311621804,1705265546362,-675.0,0.00033698,2]
[311621805,1705265546378,-500.0,0.00033698,2]
[311621806,1705265546394,-679.48,0.00033698,2]
[311621807,1705265546410,-886.22,0.00033698,2]
[311621808,1705265546425,-698.99,0.00033698,2]
[311621809,1705265546442,-567.27,0.00033698,2]
[311621810,1705265546458,-1207.58,0.00033698,2]
[311621811,1705265546474,-692.03,0.00033698,2]
[311621812,1705265546490,-4337.15,0.00033698,2]
[311621813,1705265546507,-1455.02,0.00033698,2]
[311621814,1705265546521,-718.79,0.00033698,2]
[311621815,1705265546537,-852.88,0.00033698,2]
[311621816,1705265546552,-500.0,0.00033698,2]
[311621817,1705265546567,-500.0,0.00033698,2]
[311621818,1705265546584,-500.0,0.00033698,2]
[311621819,1705265546598,-902.9,0.00033698,2]
[311621820,1705265546608,-500.0,0.00033698,5]
[311621821,1705265546618,-500.0,0.00033698,2]
[311621822,1705265546627,-746.49,0.00033698,2]
[311621823,1705265546636,-541.15,0.00033698,2]
[311621824,1705265546646,-500.0,0.00033698,2]
[311621825,1705265546655,-500.0,0.00033698,2]
[311621826,1705265546667,-7127.94,0.00033698,2]
[311621827,1705265546676,-727.08,0.00033698,2]
[311621828,1705265546686,-918.26,0.00033698,2]
[311621829,1705265546696,-2334.97,0.00033698,2]
[311621830,1705265546706,-571.94,0.00033698,2]
[311621831,1705265546716,-520.99,0.00033698,2]
[311621832,1705265546726,-643.42338056,0.00033698,2]
[311621833,1705265546737,-1278.08,0.00033698,2]
[311621834,1705265546748,-500.0,0.00033698,2]
[311621835,1705265546759,-1335.19,0.00033698,2]
[311621836,1705265546771,-500.0,0.00033698,2]
[311621837,1705265546784,-507.96,0.00033698,2]